fUST/lending_fUST_20241013
["ID","MTS","AMOUNT","RATE_DAILY","PERIOD"]
[340184787,1728790243280,-302.42545213,0.0003535,2]
[340184788,1728790243289,-302.45563732,0.0003535,2]
[340184789,1728790243298,-150.112233,0.000354,10]
[340184790,1728790243309,-1152.0,0.00035597,2]
[340184791,1728790243318,-500.0,0.00035616,7]
[340184792,1728790243328,-500.0,0.00035616,7]
[340184793,1728790243337,-500.0,0.00035616,7]
[340184794,1728790243346,-500.0,0.00035616,7]
[340184795,1728790243355,-500.0,0.00035616,7]
[340184797,1728790243365,-500.0,0.00035616,7]
[340184799,1728790243375,-500.0,0.00035616,7]
[340184801,1728790243385,-500.0,0.00035616,7]
[340184802,1728790243394,-500.0,0.00035616,7]
[340184804,1728790243404,-500.0,0.00035616,7]
[340184806,1728790243413,-500.0,0.00035616,7]
[340184808,1728790243423,-500.0,0.00035616,7]
[340184810,1728790243432,-500.0,0.00035616,7]
[340184812,1728790243442,-500.0,0.00035616,7]
[340184813,1728790243451,-500.0,0.00035616,7]
[340184815,1728790243460,-500.0,0.00035616,7]
[340184817,1728790243470,-500.0,0.00035616,7]
[340184819,1728790243480,-500.0,0.00035616,7]
[340184821,1728790243489,-500.0,0.00035616,7]
[340184822,1728790243498,-568.83570533,0.00035616,7]
[340184823,1728790243507,-500.0,0.00035616,7]
[340184825,1728790243516,-302.42545213,0.000357,2]
[340184827,1728790243526,-302.45563732,0.000357,2]
[340184829,1728790243535,-150.112233,0.000359,7]
[340184831,1728790243544,-150.0,0.00035973,5]
[340184833,1728790243554,-150.0,0.00035973,5]
[340184835,1728790243564,-14226.7964061,0.00035988,2]
[340184836,1728790243574,-150.0,0.00036,2]
[340184837,1728790243583,-2000.0,0.00036,2]
[340184838,1728790243592,-16252.67038166,0.00036,30]
[340184839,1728790243602,-11785.66,0.00036,15]
[340184840,1728790243611,-302.42545213,0.0003605,2]
[340184841,1728790243620,-302.45563732,0.0003605,2]
[340184842,1728790243630,-1428.91758045,0.00036073,5]
[340184843,1728790243639,-259.66528478,0.0003624,2]
[340184845,1728790243649,-157.0,0.00036267,5]
[340184846,1728790243658,-387.19669118,0.00036346,5]
[340184848,1728790243667,-1500.0,0.00036346,5]
[340184850,1728790243677,-1500.0,0.00036346,5]
[340184852,1728790243687,-1500.0,0.00036346,5]
[340184853,1728790243696,-3990.58676569,0.00036362,2]
[340184854,1728790243706,-302.42545213,0.000364,2]
[340184855,1728790243716,-302.45563732,0.000364,2]
[340184856,1728790243726,-10000.0,0.000365,50]
[340184857,1728790243736,-250.0,0.00036521,5]
[340184858,1728790243746,-150.112233,0.000366,8]
[340184859,1728790243755,-156.924118,0.00036639,14]
[340184860,1728790243765,-156.924118,0.00036639,14]
[340184861,1728790243774,-151.0,0.00036639,14]
[340184862,1728790243783,-151.0,0.00036639,14]
[340184863,1728790243792,-151.0,0.00036639,14]
[340184864,1728790243802,-151.0,0.00036639,14]
[340184865,1728790243813,-151.0,0.00036639,14]
[340184866,1728790243823,-509.381723,0.00036639,14]
[340184867,1728790243832,-509.381723,0.00036639,14]
[340184868,1728790243842,-1695.002454,0.00036639,14]
[340184869,1728790243852,-1021.0,0.0003666,120]
[340184870,1728790243862,-151.0,0.00036728,2]
[340184871,1728790243874,-108682.38939125,0.00036729,2]
[340184872,1728790243884,-151.0,0.00036729,7]
[340184873,1728790243894,-151.0,0.00036729,14]
[340184874,1728790243904,-453.63817819,0.0003675,4]
[340184875,1728790243915,-453.68345598,0.0003675,4]
[340184876,1728790243925,-347.99258405,0.00036822,2]
[340184877,1728790243936,-151.0,0.00036828,14]
[340184878,1728790243947,-2485.328354,0.00036828,14]
[340184879,1728790243960,-2485.328354,0.00036828,14]
[340184880,1728790243971,-151.0,0.00036828,14]
[340184881,1728790243982,-151.0,0.00036828,14]
[340184882,1728790243993,-151.0,0.00036828,14]
[340184883,1728790244003,-151.0,0.00036828,14]
[340184884,1728790244014,-151.0,0.00036828,14]
[340184885,1728790244026,-229.385289,0.00036828,14]
[340184886,1728790244038,-229.385289,0.00036828,14]
[340184887,1728790244047,-156.924118,0.00036828,14]
[340184888,1728790244057,-156.924118,0.00036828,14]
[340184889,1728790244069,-151.0,0.00036828,14]
[340184890,1728790244079,-151.0,0.00036828,14]
[340184891,1728790244091,-151.0,0.00036828,14]
[340184892,1728790244101,-151.0,0.00036828,14]
[340184893,1728790244112,-155.53140686,0.00036828,14]
[340184894,1728790244122,-509.381723,0.00036828,14]
[340184895,1728790244132,-509.381723,0.00036828,14]
[340184896,1728790244143,-1695.002454,0.00036828,14]
[340184897,1728790244152,-150.0,0.00037,2]
[340184898,1728790244162,-272.90402714,0.00037,2]
[340184899,1728790244173,-350.0,0.00037068,5]
[340184900,1728790244182,-151.0,0.000371,14]
[340184901,1728790244191,-151.0,0.000371,14]
[340184902,1728790244201,-154.055299,0.000371,14]
[340184903,1728790244212,-151.0,0.000371,14]
[340184904,1728790244222,-151.0,0.000371,14]
[340184905,1728790244234,-151.0,0.000371,14]
[340184906,1728790244244,-265.40044594,0.000371,14]
[340184907,1728790244255,-151.0,0.000371,14]
[340184908,1728790244265,-272.042859,0.000371,14]
[340184909,1728790244277,-272.042859,0.000371,14]
[340184910,1728790244286,-358.524904,0.000371,14]
[340184911,1728790244295,-358.524904,0.000371,14]
[340184912,1728790244306,-453.63817819,0.000371,4]
[340184913,1728790244316,-453.68345598,0.000371,4]
[340184914,1728790244325,-716.5142,0.00037335,30]
[340184915,1728790244335,-453.63817819,0.0003745,4]
[340184916,1728790244344,-453.68345598,0.0003745,4]
[340184917,1728790244354,-153.0,0.00037534,2]
[340184918,1728790244363,-450.0,0.00037616,5]
[340184919,1728790244372,-150.112233,0.000378,8]
[340184920,1728790244382,-151.36368225,0.000378,4]
[340184921,1728790244392,-279.53132733,0.000378,4]
[340184922,1728790244402,-9377.43686839,0.00037826,2]
[340184923,1728790244411,-157.0,0.0003787,6]
[340184924,1728790244421,-1152.0,0.00037986,2]
[340184925,1728790244430,-150.0,0.00038,2]
[340184926,1728790244439,-166.05404334,0.00038,7]
[340184927,1728790244449,-2000.0,0.00038,2]
[340184928,1728790244459,-153.0,0.00038116,120]
[340184929,1728790244526,-153.0,0.00038116,120]
[340184930,1728790244536,-153.0,0.00038116,120]
[340184931,1728790244545,-153.0,0.00038116,120]
[340184932,1728790244554,-153.0,0.00038116,120]
[340184933,1728790244565,-153.0,0.00038116,120]
[340184934,1728790244574,-153.0,0.00038116,120]
[340184935,1728790244583,-153.0,0.00038116,120]
[340184936,1728790244592,-153.0,0.00038116,120]
[340184937,1728790244601,-153.0,0.00038116,120]
[340184938,1728790244611,-153.0,0.00038116,120]
[340184939,1728790244620,-153.0,0.00038116,120]
[340184940,1728790244629,-153.0,0.00038116,120]
[340184941,1728790244638,-153.0,0.00038116,120]
[340184942,1728790244647,-153.0,0.00038116,120]
[340184943,1728790244656,-153.0,0.00038116,120]
[340184944,1728790244665,-153.0,0.00038116,120]
[340184945,1728790244674,-153.0,0.00038116,120]
[340184946,1728790244684,-153.0,0.00038116,120]
[340184947,1728790244693,-153.0,0.00038116,120]
[340184948,1728790244702,-153.0,0.00038116,120]
[340184949,1728790244711,-153.0,0.00038116,120]
[340184950,1728790244721,-153.0,0.00038116,120]
[340184951,1728790244730,-153.0,0.00038116,120]
[340184952,1728790244739,-153.0,0.00038116,120]
[340184953,1728790244748,-153.0,0.00038116,120]
[340184954,1728790244757,-153.0,0.00038116,120]
[340184955,1728790244766,-151.0,0.00038135,14]
[340184956,1728790244775,-205.615997,0.00038135,14]
[340184957,1728790244786,-205.615997,0.00038135,14]
[340184958,1728790244797,-614.515524,0.00038135,14]
[340184959,1728790244807,-614.515524,0.00038135,14]
[340184960,1728790244821,-151.0,0.00038145,14]
[340184961,1728790244830,-151.0,0.00038145,14]
[340184962,1728790244840,-158.587039,0.00038145,14]
[340184963,1728790244849,-158.587039,0.00038145,14]
[340184964,1728790244858,-157.175027,0.00038145,14]
[340184965,1728790244867,-151.0,0.00038145,14]
[340184966,1728790244876,-151.0,0.00038145,3]
[340184967,1728790244890,-151.0,0.00038145,14]
[340184968,1728790244900,-151.0,0.00038145,14]
[340184969,1728790244909,-151.0,0.00038145,14]
[340184970,1728790244918,-151.0,0.00038145,14]
[340184971,1728790244928,-151.0,0.00038145,14]
[340184972,1728790244940,-550.0,0.00038164,5]
[340184973,1728790244950,-1128.30003159,0.00038356,2]
[340184974,1728790245604,-1695.002454,0.00036639,14]
[340184975,1728790245613,-1695.002454,0.00036828,14]
[340184976,1728790245623,-190.54996841,0.00038356,2]
[340184977,1728790245632,-153.0,0.00038493,2]
[340184978,1728790245641,-10487.39669017,0.000385,26]
[340184979,1728790245652,-342.92182481,0.000385,26]
[340184992,1728790246871,-500.0,0.00032973,5]
[340184993,1728790246883,-546.68,0.0003299,3]
[340184994,1728790246894,-1000.0,0.00034342,5]
[340184995,1728790246905,-1685.29393039,0.000385,26]
[340184996,1728790309553,2040.50697011,0.00019579,2]
[340184997,1728790315839,719.5315211,0.00024657,2]
[340184998,1728790348712,210.21289367,0.00025,120]
[340184999,1728790618997,1148.777835,0.00023766,2]
[340185000,1728790625687,1669.2863914,0.00023766,2]
[340185001,1728790695565,769.09539,0.00023815,2]
[340185002,1728790695778,769.09539,0.00023821,2]
[340185003,1728790695989,769.09539,0.00023827,2]
[340185004,1728790696213,769.09539,0.00023834,2]
[340185005,1728790696425,769.09539,0.0002384,2]
[340185006,1728790696630,769.09539,0.00023846,2]
[340185007,1728790696841,769.09539,0.00023852,2]
[340185008,1728790697053,769.09539,0.00023859,2]
[340185009,1728790697285,769.09539,0.00023865,2]
[340185010,1728790697496,769.09539,0.00023871,2]
[340185011,1728790697721,769.09539,0.00023878,2]
[340185012,1728790698010,769.09539,0.00023884,2]
[340185013,1728790698224,769.09539,0.0002389,2]
[340185014,1728790698429,769.09539,0.00023896,2]
[340185015,1728790698825,769.09539,0.00023903,2]
[340185016,1728790699034,769.09539,0.00023909,2]
[340185017,1728790699245,769.09539,0.00023915,2]
[340185018,1728790699479,769.09539,0.00023921,2]
[340185019,1728790699901,769.09539,0.00023928,2]
[340185020,1728790700119,769.09539,0.00023934,2]
[340185021,1728790712158,166.666666,0.00023362,2]
[340185022,1728790712396,166.666666,0.00023999,2]
[340185024,1728790804475,24900.0,0.00023682,2]
[340185025,1728790806736,487.17530606,0.00021,2]
[340185026,1728790807860,466.1087653,0.0002205,2]
[340185027,1728790808401,4974.816086,0.00023719,2]
[340185028,1728790808981,465.05543827,0.00023153,2]
[340185029,1728790860460,10200.1114046,0.0002363,2]
[340185044,1728790882124,1266.3413147,0.00023482,7]
[340185046,1728790889986,446.4560789,0.00023482,4]
[340185047,1728790895341,2957.4057888,0.00023473,2]
[340185048,1728790902677,2036.4938415,0.00023628,2]
[340185049,1728790966025,3000.0,0.00023401,2]
[340185050,1728791001478,170.431208,0.0002319,2]
[340185051,1728791036897,191.0583215,0.00023406,2]
[340185052,1728791078743,30840.512462,0.00023417,2]
[340185053,1728791079530,150.0,0.00025,120]
[340185054,1728791101749,172.2139443,0.00023836,2]
[340185055,1728791104409,3796.911626,0.00023415,2]
[340185056,1728791106907,250.0,0.00023599,2]
[340185057,1728791107137,250.0,0.00023664,2]
[340185058,1728791107351,250.0,0.00023729,2]
[340185059,1728791107622,250.0,0.00023793,2]
[340185060,1728791107838,250.0,0.00023858,2]
[340185061,1728791108051,250.0,0.00023923,2]
[340185062,1728791108294,250.0,0.00023988,2]
[340185063,1728791133581,427.96190813,0.00023952,2]
[340185064,1728791210908,166.666666,0.00022961,2]
[340185065,1728791211159,166.666666,0.00023587,2]
[340185066,1728791230127,-5122.521824,0.00024038,2]
[340185067,1728791230152,-250.0,0.00024052,2]
[340185068,1728791230175,-250.0,0.00024117,2]
[340185069,1728791230197,-250.0,0.0002418,2]
[340185070,1728791230219,-250.0,0.00024182,2]
[340185071,1728791230348,-166.666666,0.00024213,2]
[340185072,1728791230371,-250.0,0.00024246,2]
[340185073,1728791230392,-465.00277191,0.0002431,2]
[340185074,1728791230414,-250.0,0.00024311,2]
[340185075,1728791230435,-250.0,0.00024376,2]
[340185076,1728791230456,-300.0,0.00024402,2]
[340185077,1728791230476,-1385.695969,0.00024403,2]
[340185078,1728791230497,-300.0,0.00024403,2]
[340185079,1728791230517,-2857.67588123,0.00024404,2]
[340185080,1728791241106,-382.53961015,0.00024404,2]
[340185081,1728791244146,-1126.19543933,0.00024404,2]
[340185082,1728791253107,-171.59684821,0.00024404,2]
[340185083,1728791280081,250.0,0.00023517,2]
[340185084,1728791285205,5000.0,0.00024,2]
[340185085,1728791303282,1803.874797,0.00023509,2]
[340185086,1728791348127,-582.07155722,0.00024194,2]
[340185087,1728791348186,-1221.80323978,0.00024194,2]
[340185088,1728791348210,-250.0,0.00024441,2]
[340185089,1728791348232,-38.69299265,0.00024455,2]
[340185090,1728791350104,-855.92381626,0.00024395,2]
[340185091,1728791350126,-261.30700735,0.00024455,2]
[340185092,1728791350148,-300.0,0.00024455,2]
[340185093,1728791350170,-9626.79491076,0.00024456,2]
[340185094,1728791350194,-250.0,0.00024505,2]
[340185095,1728791350215,-150.0,0.00024546,2]
[340185096,1728791350237,-674.75346232,0.00024556,2]
[340185097,1728791350258,-315.10964771,0.00024556,2]
[340185098,1728791350280,-250.0,0.0002457,2]
[340185099,1728791350301,-252.5820643,0.00024573,2]
[340185100,1728791350322,-500.0,0.00024573,2]
[340185101,1728791350343,-500.0,0.00024573,2]
[340185102,1728791350370,-500.0,0.00024573,2]
[340185103,1728791350394,-500.0,0.00024573,2]
[340185104,1728791350416,-500.0,0.00024573,2]
[340185105,1728791350442,-500.0,0.00024573,2]
[340185106,1728791350462,-395.8006495,0.00024573,2]
[340185107,1728791350485,-500.0,0.00024573,2]
[340185108,1728791350508,-500.0,0.00024573,2]
[340185109,1728791350533,-500.0,0.00024573,2]
[340185110,1728791350560,-250.0,0.00024635,2]
[340185111,1728791350586,-997.90440076,0.00024656,2]
[340185112,1728791350608,-516.6496138,0.00024657,2]
[340185113,1728791350630,-500.0,0.00024657,2]
[340185114,1728791350653,-500.0,0.00024657,2]
[340185115,1728791350676,-500.0,0.00024657,2]
[340185116,1728791350703,-500.0,0.00024657,2]
[340185117,1728791350725,-500.0,0.00024657,2]
[340185118,1728791350747,-3.75418724,0.00024657,2]
[340185119,1728791353977,24900.0,0.00023584,2]
[340185120,1728791355113,-496.24581276,0.00024657,2]
[340185121,1728791355136,-500.0,0.00024657,2]
[340185122,1728791355158,-500.0,0.00024657,2]
[340185123,1728791355181,-500.0,0.00024657,2]
[340185124,1728791355285,-500.0,0.00024657,2]
[340185125,1728791355309,-500.0,0.00024657,2]
[340185126,1728791355331,-295.83564549,0.00024657,2]
[340185127,1728791355355,-500.0,0.00024657,2]
[340185128,1728791355377,-500.0,0.00024657,2]
[340185129,1728791355401,-500.0,0.00024657,2]
[340185130,1728791355440,-500.0,0.00024657,2]
[340185131,1728791355466,-500.0,0.00024657,2]
[340185132,1728791355490,-500.0,0.00024657,2]
[340185133,1728791355515,-500.0,0.00024657,2]
[340185134,1728791355541,-500.0,0.00024657,2]
[340185135,1728791355568,-500.0,0.00024657,2]
[340185136,1728791355595,-500.0,0.00024657,2]
[340185137,1728791355617,-500.0,0.00024657,2]
[340185138,1728791355642,-500.0,0.00024657,2]
[340185139,1728791355666,-500.0,0.00024657,2]
[340185140,1728791355691,-500.0,0.00024657,2]
[340185141,1728791355718,-500.0,0.00024657,2]
[340185142,1728791355743,-500.0,0.00024657,2]
[340185143,1728791355769,-500.0,0.00024657,2]
[340185144,1728791355795,-500.0,0.00024657,2]
[340185145,1728791355820,-500.0,0.00024657,2]
[340185146,1728791355846,-500.0,0.00024657,2]
[340185147,1728791355872,-500.0,0.00024657,2]
[340185148,1728791355898,-500.0,0.00024657,2]
[340185149,1728791355920,-500.0,0.00024657,2]
[340185150,1728791355943,-500.0,0.00024657,2]
[340185151,1728791355965,-500.0,0.00024657,2]
[340185152,1728791355987,-500.0,0.00024657,2]
[340185153,1728791356008,-500.0,0.00024657,2]
[340185154,1728791356032,-500.0,0.00024657,2]
[340185155,1728791356057,-500.0,0.00024657,2]
[340185156,1728791356079,-439.64782287,0.00024657,2]
[340185157,1728791356101,-500.0,0.00024657,2]
[340185158,1728791356122,-500.0,0.00024657,2]
[340185159,1728791356144,-500.0,0.00024657,2]
[340185160,1728791356165,-380.0,0.00024658,2]
[340185161,1728791356185,-660.0,0.00024658,2]
[340185162,1728791356205,-200.0,0.00024658,15]
[340185163,1728791356227,-500.0,0.00024658,2]
[340185164,1728791356249,-500.0,0.00024658,2]
[340185165,1728791356272,-500.0,0.00024658,2]
[340185166,1728791356294,-500.0,0.00024658,2]
[340185167,1728791356315,-500.0,0.00024658,2]
[340185168,1728791356337,-500.0,0.00024658,2]
[340185169,1728791356359,-500.0,0.00024658,2]
[340185170,1728791356380,-493.06678157,0.00024658,2]
[340185171,1728791356404,-500.0,0.00024658,2]
[340185172,1728791356426,-500.0,0.00024658,2]
[340185173,1728791356448,-500.0,0.00024658,2]
[340185174,1728791356479,-500.0,0.00024658,2]
[340185175,1728791356502,-500.0,0.00024658,2]
[340185176,1728791356524,-500.0,0.00024673,2]
[340185177,1728791356544,-500.0,0.00024689,2]
[340185178,1728791356565,-500.0,0.00024689,2]
[340185179,1728791356585,-500.0,0.00024689,2]
[340185180,1728791356606,-338.98454189,0.00024689,2]
[340185181,1728791356627,-500.0,0.00024689,2]
[340185182,1728791356651,-250.0,0.00024699,2]
[340185183,1728791356675,-250.0,0.00024764,2]
[340185184,1728791356697,-250.0,0.00024829,2]
[340185185,1728791356718,-166.666666,0.00024839,2]
[340185186,1728791356740,-1803.874797,0.00024879,2]
[340185187,1728791356761,-1922.82165444,0.00024897,2]
[340185188,1728791356783,-189.0,0.00025099,2]
[340185189,1728791356804,-2364.52973274,0.00025278,4]
[340185190,1728791356826,-166.666666,0.00025465,2]
[340185191,1728791356929,-465.0001386,0.00025526,2]
[340185192,1728791356951,-501.3774042,0.00025576,2]
[340185193,1728791356971,-500.40597054,0.00025576,2]
[340185194,1728791356995,-500.0,0.00025576,2]
[340185195,1728791357017,-500.0,0.00025576,2]
[340185196,1728791357040,-502.72387443,0.00025576,2]
[340185197,1728791357060,-193.66046304,0.00025845,2]
[340185198,1728791357082,-1000.0,0.00025942,2]
[340185199,1728791357102,-1000.0,0.00025942,2]
[340185200,1728791357122,-875.33574275,0.00025942,2]
[340185201,1728791357142,-1000.0,0.00025942,2]
[340185202,1728791357163,-1000.0,0.00025942,2]
[340185203,1728791357182,-502.27822382,0.00025942,2]
[340185204,1728791357202,-67.0025377,0.00026028,2]
[340185205,1728791358184,-31023.18291097,0.00024557,2]
[340185206,1728791358205,-932.9974623,0.00026028,2]
[340185207,1728791358227,-521.2546016,0.00026042,2]
[340185208,1728791358248,-1000.0,0.00026059,2]
[340185209,1728791358269,-1005.12322668,0.00026059,2]
[340185210,1728791358291,-502.232171,0.00026059,2]
[340185211,1728791358314,-166.666666,0.00026091,2]
[340185212,1728791358339,-505.63140856,0.00026119,2]
[340185213,1728791358361,-243.49185191,0.000264,2]
[340185214,1728791358381,-500.0,0.000264,2]
[340185215,1728791358402,-500.0,0.000264,2]
[340185216,1728791358424,-420.0,0.00026508,2]
[340185217,1728791358449,-1919.14827962,0.00026743,2]
[340185218,1728791358470,-501.70662504,0.00026757,2]
[340185219,1728791358490,-500.0,0.00026757,2]
[340185220,1728791358510,-361.5471361,0.0002678,2]
[340185221,1728791358532,-420.0,0.00026901,2]
[340185222,1728791358552,-230.13592936,0.00026946,2]
[340185223,1728791358572,-1000.0,0.00026946,2]
[340185224,1728791358593,-360.68,0.00027,7]
[340185225,1728791358613,-500.0,0.00027191,2]
[340185226,1728791358634,-168.744094,0.00027307,2]
[340185227,1728791358655,-1000.0,0.00027398,7]
[340185228,1728791358676,-1919.14827958,0.00027457,2]
[340185229,1728791358697,-1994.39,0.00027664,10]
[340185230,1728791358719,-3475.36,0.00027664,10]
[340185231,1728791358740,-500.0,0.00027673,5]
[340185232,1728791358760,-500.0,0.00027673,5]
[340185233,1728791358781,-304.87059952,0.00027673,5]
[340185234,1728791358801,-211.86742833,0.00027673,2]
[340185235,1728791358826,-153.71842128,0.00027673,2]
[340185236,1728791362107,-667.99,0.00027664,3]
[340185237,1728791362130,-72.27979278,0.00027673,2]
[340185238,1728791362153,-364.28868222,0.00027673,2]
[340185239,1728791362178,-47112.12275618,0.00027674,4]
[340185240,1728791362208,-1250.20603661,0.00027674,4]
[340185241,1728791363113,-11383.1508,0.00027674,4]
[340185242,1728791365107,-24527.2574681,0.00027674,4]
[340185243,1728791405859,2160.87279046,0.00024,2]
[340185295,1728791432738,-360.68,0.00027,7]
[340185296,1728791432749,-93.93729187,0.00027584,2]
[340185297,1728791432798,-1091.26374613,0.00027584,2]
[340185298,1728791432807,-300.0,0.00027663,2]
[340185299,1728791432816,-2011.2,0.00027664,10]
[340185300,1728791432825,-556.66,0.00027664,3]
[340185301,1728791432836,-2560.93,0.00027664,10]
[340185302,1728791432854,-278.33,0.00027664,3]
[340185303,1728791432866,-2134.11,0.00027664,10]
[340185304,1728791432876,-835.03,0.00027664,3]
[340185305,1728791432886,-1778.42,0.00027664,10]
[340185306,1728791432896,-500.0,0.00027673,2]
[340185307,1728791432906,-500.0,0.00027673,2]
[340185308,1728791432916,-310.64840506,0.00027673,2]
[340185309,1728791432927,-165.89630906,0.00027673,2]
[340185310,1728791432937,-500.0,0.00027673,2]
[340185311,1728791432948,-500.0,0.00027673,2]
[340185312,1728791432958,-500.0,0.00027673,2]
[340185313,1728791432968,-603.92565149,0.00027673,2]
[340185314,1728791432978,-300.0,0.00027673,2]
[340185315,1728791432989,-560.09195506,0.00027673,2]
[340185316,1728791432999,-3884.72370685,0.00027674,4]
[340185324,1728791438870,-617.51719158,0.00027664,10]
[340185325,1728791438949,-864.50280842,0.00027664,10]
[340185326,1728791438960,-3525.59646632,0.00027674,4]
[340185327,1728791440327,-14636.25214581,0.00027674,4]
[340185328,1728791440341,-310.89296378,0.00027674,4]
[340185331,1728791440798,-73753.97159335,0.00027674,4]
[340185332,1728791440808,-161594.593211,0.00027674,4]
[340185333,1728791440818,-120256.115958,0.00027683,4]
[340185334,1728791440827,-107729.728807,0.00027683,4]
[340185335,1728791440836,-1000.0,0.0002777,5]
[340185336,1728791440846,-1000.0,0.0002777,5]
[340185337,1728791440856,-345.72756834,0.00027773,5]
[340185338,1728791440867,-1185.20103796,0.00027846,2]
[340185339,1728791440879,-1500.0,0.00027946,5]
[340185340,1728791440890,-1500.0,0.00027946,5]
[340185341,1728791440899,-1004.59047197,0.00027946,5]
[340185342,1728791440909,-1500.0,0.00027946,5]
[340185343,1728791440919,-1185.20103796,0.00028109,2]
[340185344,1728791440928,-596.92146418,0.00028246,2]
[340185345,1728791440938,-1185.20103796,0.00028371,2]
[340185346,1728791440947,-500.39694601,0.00028561,5]
[340185347,1728791440956,-161594.593211,0.00028575,4]
[340185348,1728791440966,-1185.20103796,0.00028633,2]
[340185349,1728791440975,-1000.0,0.00028768,7]
[340185350,1728791440985,-1113.32,0.00029034,3]
[340185351,1728791440994,-556.66,0.00029034,3]
[340185352,1728791441003,-1000.0,0.00029042,5]
[340185353,1728791441012,-311.16523097,0.00029174,2]
[340185354,1728791441021,-500.0,0.00029174,5]
[340185355,1728791441031,-7017.27,0.000296,30]
[340185356,1728791441042,-500.0,0.00029673,5]
[340185357,1728791441051,-501.25373238,0.00029673,5]
[340185358,1728791441061,-1085.47,0.000297,30]
[340185359,1728791441071,-1050.0,0.000297,14]
[340185360,1728791441081,-1436.76077567,0.00029773,5]
[340185361,1728791441091,-1002.54167999,0.00029773,5]
[340185362,1728791441101,-420.0,0.00029886,2]
[340185363,1728791441110,-230.0,0.0003,2]
[340185364,1728791441122,-500.0,0.0003,30]
[340185365,1728791441132,-500.0,0.0003,30]
[340185366,1728791441141,-500.0,0.0003,30]
[340185367,1728791441151,-612.39967902,0.0003,30]
[340185368,1728791441160,-500.0,0.0003,30]
[340185369,1728791441169,-500.0,0.0003,30]
[340185370,1728791441179,-500.0,0.0003,30]
[340185371,1728791441188,-500.0,0.0003,30]
[340185372,1728791441198,-692.55522901,0.0003,30]
[340185373,1728791441208,-500.0,0.0003,30]
[340185374,1728791441217,-991.05512884,0.0003,30]
[340185375,1728791441226,-1000.0,0.00030136,120]
[340185376,1728791441236,-288.82481995,0.00030138,7]
[340185377,1728791441245,-1500.0,0.00030287,5]
[340185378,1728791441261,-2000.0,0.00030287,5]
[340185379,1728791441271,-1000.0,0.0003041,120]
[340185380,1728791441281,-420.0,0.0003044,2]
[340185381,1728791441290,-644.07957919,0.00030544,5]
[340185382,1728791441299,-1000.0,0.00030684,120]
[340185383,1728791441310,-7017.27,0.000309,30]
[340185384,1728791441320,-1000.0,0.00030958,120]
[340185385,1728791441329,-1085.47,0.00031,30]
[340185386,1728791441340,-1050.0,0.00031,14]
[340185387,1728791441349,-153.507786,0.00031,8]
[340185388,1728791441359,-594.86112382,0.00031029,10]
[340185389,1728791441368,-500.0,0.00031029,10]
[340185390,1728791441378,-500.0,0.00031029,10]
[340185391,1728791441387,-500.0,0.00031029,10]
[340185392,1728791441397,-1000.0,0.00031042,5]
[340185393,1728791441406,-1500.0,0.00031046,5]
[340185394,1728791441416,-500.0,0.00031143,5]
[340185395,1728791441425,-500.0,0.00031143,5]
[340185396,1728791441435,-500.0,0.00031147,10]